bitfinex-derivatives/quotes_ETHF0:USTF0_20250505
["timestamp","ask_amount","ask_price","bid_price","bid_amount"]
[1746478232229,4.0436,1808.1,1808.0,1.10636]
[1746478232429,4.0436,1808.1,1808.0,2.67356]
[1746478232730,3.2078,1808.1,1808.0,2.67356]
[1746478233329,2.4444,1808.3,1808.2,1.10623]
[1746478233726,1.94191,1808.4,1808.3,1.10617]
[1746478233930,4.36331,1808.4,1808.3,40.8]
[1746478234131,4.36331,1808.4,1808.3,41.90617]
[1746478234336,3.2572,1808.4,1808.3,41.90617]
[1746478234829,4.36331,1808.4,1808.3,41.90617]
[1746478235924,3.2572,1808.4,1808.3,41.90617]
[1746478237530,0.8358,1808.4,1808.3,43.60377]
[1746478237732,5.10605,1808.5,1808.4,1.10611]
[1746478237931,6.83895,1808.5,1808.4,2.80371]
[1746478238332,6.83895,1808.5,1808.4,1.10611]
[1746478239732,5.7329,1808.5,1808.4,1.10611]
[1746478239931,5.7329,1808.5,1808.4,2.76301]
[1746478240339,6.83895,1808.5,1808.4,2.76301]
[1746478240638,5.7329,1808.5,1808.4,2.76301]
[1746478240938,6.83895,1808.5,1808.4,2.76301]
[1746478241139,5.7329,1808.5,1808.4,2.76301]
[1746478241337,6.83895,1808.5,1808.4,2.76301]
[1746478241531,5.7329,1808.5,1808.4,2.76301]
[1746478241729,6.83895,1808.5,1808.4,2.76301]
[1746478241927,5.7329,1808.5,1808.4,2.76301]
[1746478242641,6.83895,1808.5,1808.4,2.76301]
[1746478242841,3.2078,1808.7,1808.4,2.76301]
[1746478243139,4.31362,1808.9,1808.8,1.10587]
[1746478243337,3.2078,1808.9,1808.8,1.10587]
[1746478243538,3.2078,1808.9,1808.8,4.78287]
[1746478244245,1.6969,1808.9,1808.8,1.10587]
[1746478245043,1.6969,1808.9,1808.8,2.71337]
[1746478246241,2.80271,1808.9,1808.8,1.10587]
[1746478246442,2.80276,1808.9,1808.8,1.10587]
[1746478246945,1.6969,1808.9,1808.3,44.0078]
[1746478247143,1.10601,1808.6,1808.5,1.10602]
[1746478247534,4.31384,1808.6,1808.5,1.10605]
[1746478250340,3.2078,1808.6,1808.5,1.10605]
[1746478250540,4.31379,1808.6,1808.5,1.10605]
[1746478250736,4.7809,1808.6,1808.5,1.10605]
[1746478251345,4.7809,1808.6,1808.5,2.74495]
[1746478252047,3.2078,1808.6,1808.5,2.74495]
[1746478252242,4.42819,1808.8,1808.7,1.10593]
[1746478252848,1.10593,1808.7,1808.6,1.10595]
[1746478253149,6.01243,1808.7,1808.6,1.10595]
[1746478255550,3.2078,1808.7,1808.6,1.10595]
[1746478255944,1.62950456,1808.8,1808.7,1.10593]
[1746478256652,0.00590456,1808.8,1808.7,4.77793]
[1746478256844,0.00590456,1808.8,1808.7,6.42863]
[1746478257651,0.00590456,1808.8,1808.7,11.42863]
[1746478258646,0.00590456,1808.8,1808.7,6.42863]
[1746478260253,0.00590456,1808.8,1808.7,5.60973]
[1746478260553,0.00590456,1808.8,1808.7,1.10593]
[1746478260754,1.66690456,1808.8,1808.7,1.10593]
[1746478261854,1.66690456,1808.8,1808.7,2.72443]
[1746478262942,1.10599,1808.6,1808.5,1.8963]
[1746478263148,0.8576,1808.7,1808.6,1.10599]
[1746478263453,3.3933,1808.7,1808.6,1.10599]
[1746478263849,3.3933,1808.7,1808.6,2.72449]
[1746478264247,3.21370456,1808.8,1808.7,1.10593]
[1746478264443,0.00590456,1808.8,1808.7,3.63613]
[1746478265850,0.00590456,1808.8,1808.7,6.84393]
[1746478269256,0.00590456,1808.8,1808.7,3.63613]
[1746478269662,1.67150456,1808.8,1808.7,3.63613]
[1746478269854,2.50770456,1808.8,1808.7,3.63613]
[1746478273065,2.50770456,1808.8,1808.7,1.10593]
[1746478275264,10.71550456,1808.8,1808.4,0.8432]
[1746478275460,3.50785,1808.7,1808.6,1.10595]
[1746478276565,1.10599,1808.6,1808.5,3.672]
[1746478276761,2.78929,1808.6,1808.5,4.77803]
[1746478277369,1.6833,1808.6,1808.5,4.77803]
[1746478277668,2.78929,1808.6,1808.5,4.77803]
[1746478277872,1.6833,1808.6,1808.5,4.77803]
[1746478278263,0.8304,1808.7,1808.6,1.10599]
[1746478278457,4.0382,1808.7,1808.6,2.68229]
[1746478278865,5.7215,1808.7,1808.6,2.68229]
[1746478279671,2.5137,1808.7,1808.6,2.68229]
[1746478279868,5.7215,1808.7,1808.6,2.68229]
[1746478281571,0.8304,1808.7,1808.6,2.68229]
[1746478281873,0.84210456,1808.8,1808.7,1.10593]
[1746478282074,0.84210456,1808.8,1808.7,2.70603]
[1746478283174,0.00590456,1808.8,1808.7,2.70603]
[1746478285173,0.00590456,1808.8,1808.7,7.70603]
[1746478285674,4.56e-06,1808.8,1808.7,7.70603]
[1746478289374,4.56e-06,1808.8,1808.7,48.50603]
[1746478289581,4.56e-06,1808.8,1808.7,43.50603]
[1746478297387,4.56e-06,1808.8,1808.7,47.23803]
[1746478303087,5.00000456,1808.8,1808.7,45.63793]
[1746478303881,6.58440456,1808.8,1808.7,45.63793]
[1746478304384,6.58440456,1808.8,1808.7,44.532]
[1746478304586,6.58440456,1808.8,1808.7,45.63793]
[1746478305187,8.31450456,1808.8,1808.7,41.90593]
[1746478305389,3.31450456,1808.8,1808.7,41.90593]
[1746478306188,3.31450456,1808.8,1808.7,45.63793]
[1746478320701,4.42037456,1808.8,1808.7,44.532]
[1746478321097,4.42037456,1808.8,1808.7,41.90593]
[1746478321599,3.31450456,1808.8,1808.7,41.90593]
[1746478324203,3.31450456,1808.8,1808.7,45.63793]
[1746478324803,4.42037456,1808.8,1808.7,45.63793]
[1746478325098,6.52230456,1808.8,1808.7,45.63793]
[1746478325405,7.62817456,1808.8,1808.7,45.63793]
[1746478325703,7.62817456,1808.8,1808.7,41.90593]
[1746478326497,6.52230456,1808.8,1808.7,41.90593]
[1746478326702,7.62817456,1808.8,1808.7,41.90593]
[1746478328006,6.52230456,1808.8,1808.7,41.90593]
[1746478331407,7.62817,1808.8,1808.7,41.90593]
[1746478331705,4.42037,1808.8,1808.7,41.90593]
[1746478334810,1.10599,1808.6,1808.5,4.77804]
[1746478335107,2.71648,1808.7,1808.6,1.10599]
[1746478335509,1.10599,1808.6,1808.5,45.57801]
[1746478335812,2.71649,1808.6,1808.5,45.57801]
[1746478336309,1.6105,1808.6,1808.5,45.57801]
[1746478337508,2.71649,1808.6,1808.5,45.57801]
[1746478337909,1.6105,1808.6,1808.5,45.57801]
[1746478338710,2.71649,1808.6,1808.5,45.57801]
[1746478339313,1.6105,1808.6,1808.5,45.57801]
[1746478339611,2.71649,1808.6,1808.5,45.57801]
[1746478340815,1.6105,1808.6,1808.5,45.57801]
[1746478341911,4.7922,1808.8,1808.5,44.472]
[1746478342108,3.65154048,1808.9,1808.6,3.2522]
[1746478342416,4.75735048,1808.9,1808.8,1.10587]
[1746478342619,6.41475048,1808.9,1808.8,1.10587]
[1746478344514,1.10599,1808.6,1808.5,44.472]
[1746478344704,1.10599,1808.6,1808.5,40.8]
[1746478345103,2.67939,1808.6,1808.5,40.8]
[1746478345603,2.67939,1808.6,1808.5,41.90605]
[1746478346316,2.67939,1808.6,1808.5,40.8]
[1746478347416,6.41139,1808.6,1808.5,40.8]
[1746478347809,10.06293048,1808.6,1808.5,40.8]
[1746478348816,6.41139,1808.6,1808.5,40.8]
[1746478350811,11.92357603,1808.6,1808.5,40.8]
[1746478351610,11.92357603,1808.6,1808.5,41.90605]
[1746478352115,8.19157603,1808.6,1808.5,41.90605]
[1746478353518,11.86298565,1808.6,1808.5,41.90605]
[1746478354213,11.86298565,1808.6,1808.5,43.60865]
[1746478354813,10.28958565,1808.6,1808.5,43.60865]
[1746478356521,1.10599,1808.6,1808.5,43.60865]
[1746478356919,11.22348962,1808.7,1808.6,1.10599]
[1746478357122,11.22348962,1808.7,1808.6,2.78159]
[1746478358321,6.87920962,1808.7,1808.6,2.78159]
[1746478358521,3.67140962,1808.7,1808.6,2.78159]
[1746478360512,3.67140962,1808.7,1808.6,7.78159]
[1746478360728,3.67140962,1808.7,1808.6,10.98939]
[1746478363930,7.98478962,1809.3,1809.2,1.10562]
[1746478364130,7.98481962,1809.3,1809.2,1.10562]
[1746478365234,7.98481962,1809.3,1809.1,2.74425]
[1746478365427,9.67941962,1809.3,1809.2,1.6386]
[1746478366233,9.67941962,1809.3,1809.2,2.74422]
[1746478366436,9.67941962,1809.3,1809.2,1.6386]
[1746478366840,9.67941962,1809.3,1809.2,2.74422]
[1746478367133,9.67941962,1809.3,1809.2,1.6386]
[1746478367329,6.00801,1809.3,1809.2,1.6386]
[1746478368037,4.9024,1809.3,1809.2,2.74422]
[1746478368227,3.2078,1809.3,1809.2,6.47622]
[1746478369138,3.2078,1809.3,1809.2,2.74422]
[1746478369330,4.31336,1809.3,1809.2,2.74422]
[1746478369736,3.2078,1809.3,1809.2,2.74422]
[1746478370136,4.31336,1809.3,1809.2,2.74422]
[1746478370330,5.88536,1809.3,1809.2,1.6386]
[1746478370529,5.88536,1809.3,1809.2,2.74422]
[1746478372545,1.10568,1809.1,1809.0,1.6308]
[1746478372837,1.10574,1809.0,1808.9,4.76679]
[1746478373041,4.36904,1809.0,1808.9,4.76679]
[1746478373644,3.2633,1809.0,1808.9,4.76679]
[1746478374143,2.3963,1809.0,1808.9,6.39309]
[1746478374544,3.50204,1809.0,1808.9,6.39309]
[1746478374740,2.3963,1809.0,1808.9,6.39309]
[1746478376039,3.50204,1809.0,1808.9,6.39309]
[1746478376237,2.3963,1809.0,1808.9,6.39309]
[1746478376838,3.50204,1809.0,1808.9,6.39309]
[1746478377645,3.50204,1809.0,1808.9,4.76679]
[1746478377833,1.10581,1808.9,1808.8,2.81012]
[1746478378033,3.61001,1808.9,1808.8,1.10582]
[1746478378245,6.81781,1808.9,1808.8,1.10582]
[1746478379746,1.10587,1808.8,1808.7,1.10588]
[1746478380045,2.81557,1808.8,1808.7,1.10588]
[1746478380247,1.7097,1808.8,1808.7,1.10588]
[1746478380643,1.7097,1808.8,1808.7,2.74428]
[1746478380847,2.81557,1808.8,1808.7,2.74428]
[1746478381034,1.7097,1808.8,1808.7,2.74428]
[1746478381239,2.81557,1808.8,1808.7,2.74428]
[1746478385350,2.81557,1808.8,1808.7,1.10588]
[1746478387943,1.7097,1808.8,1808.7,1.10588]
[1746478392155,1.7097,1808.8,1808.7,2.69288]
[1746478396362,0.7945,1808.9,1808.8,1.10587]
[1746478396563,0.7945,1808.9,1808.8,4.41677]
[1746478396963,1.90031,1808.9,1808.8,4.41677]
[1746478397153,3.62471,1808.9,1808.8,4.41677]
[1746478397962,2.5189,1808.9,1808.8,4.41677]
[1746478398459,3.62471,1808.9,1808.8,4.41677]
[1746478399463,3.62471,1808.9,1808.8,3.55707]
[1746478399663,3.62471,1808.9,1808.8,2.76807]
[1746478399853,1.10593,1808.7,1808.5,40.8]
[1746478400053,1.10593,1808.7,1808.4,3.2078]
[1746478400054,1.10605,1808.5,1808.4,1.6174]
[1746478400263,7.51845,1808.6,1808.5,1.10605]
[1746478400652,4.31065,1808.6,1808.5,41.90605]
[1746478401060,3.2046,1808.6,1808.5,41.90605]
[1746478401862,3.2078,1808.8,1808.5,40.8]
[1746478402164,3.2078,1808.8,1808.7,1.10593]
[1746478402559,4.8898,1808.8,1808.7,1.10593]
[1746478403464,5.99567,1808.8,1808.7,2.81953]
[1746478403966,5.99567,1808.8,1808.7,1.10593]
[1746478410363,1.10596,1808.7,1808.6,1.10593]
[1746478410558,2.73586,1808.7,1808.6,1.10593]
[1746478411067,2.73586,1808.7,1808.6,2.81163]
[1746478422280,2.73583,1808.7,1808.6,2.81163]
[1746478422470,1.6299,1808.7,1808.6,2.81163]
[1746478422671,6.87920962,1808.8,1808.7,1.10593]
[1746478422875,7.98507962,1808.8,1808.7,2.80453]
[1746478424279,6.87920962,1808.8,1808.7,2.80453]
[1746478424576,7.98507962,1808.8,1808.7,2.80453]
[1746478425475,6.87920962,1808.8,1808.7,2.80453]
[1746478425677,7.98507962,1808.8,1808.7,3.63903]
[1746478426274,9.69967962,1808.8,1808.7,3.63903]
[1746478427573,9.69967962,1808.8,1808.7,2.80453]
[1746478429778,9.69967962,1808.8,1808.5,44.40338]
[1746478429981,2.69448,1808.7,1808.6,1.10595]
[1746478431887,6.36588962,1808.7,1808.6,1.10595]
[1746478435586,6.36588962,1808.7,1808.6,2.73165]
[1746478438295,6.36588962,1808.7,1808.6,1.6257]
[1746478439797,6.36588962,1808.7,1808.6,2.73169]
[1746478440297,6.36588962,1808.7,1808.6,1.10599]
[1746478442291,6.36588962,1808.7,1808.6,2.78669]
[1746478443395,6.36588962,1808.7,1808.6,3.56949]
[1746478445600,6.36588962,1808.7,1808.6,2.78669]
[1746478445794,6.36588962,1808.7,1808.6,1.6807]
[1746478447697,6.36588962,1808.7,1808.6,2.78669]
[1746478448901,8.20666603,1808.7,1808.6,2.78669]
[1746478449402,1.10599,1808.6,1808.5,41.906]
[1746478449602,4.47999,1808.6,1808.5,41.906]
[1746478450101,7.68779,1808.6,1808.5,45.638]
[1746478450401,7.68779,1808.6,1808.5,47.3639]
[1746478452304,11.36828289,1808.6,1808.5,47.3639]
[1746478452806,11.36828289,1808.6,1808.5,44.532]
[1746478453001,11.36828289,1808.6,1808.5,45.63805]
[1746478453202,11.36828289,1808.6,1808.5,41.90605]
[1746478453501,11.36828289,1808.6,1808.5,40.8]
[1746478454710,11.36828289,1808.6,1808.5,41.90605]
[1746478455208,13.19997603,1808.6,1808.5,41.90605]
[1746478455801,13.19997603,1808.6,1808.5,40.8]
[1746478456316,13.19997603,1808.6,1808.5,41.90605]
[1746478460804,12.09398603,1808.6,1808.5,41.90605]
[1746478461006,5.51218603,1808.6,1808.5,50.18515]
[1746478461211,5.51218603,1808.6,1808.5,53.91715]
[1746478462099,7.34958137,1808.7,1808.5,53.91715]
[1746478462314,6.10243137,1808.8,1808.7,1.10593]
[1746478462609,6.10243137,1808.8,1808.7,6.35953]
[1746478462811,6.10243137,1808.8,1808.7,11.35953]
[1746478463112,6.10243137,1808.8,1808.7,15.09153]
[1746478464815,1.10556,1809.3,1809.2,1.10562]
[1746478465213,11.26666346,1809.4,1809.2,1.10562]
[1746478465408,1.10556,1809.3,1809.2,1.10562]
[1746478465715,1.10568,1809.1,1809.0,3.646]
[1746478465911,4.31348,1809.1,1809.0,3.646]
[1746478466512,5.13648,1809.1,1809.0,4.75174]
[1746478468312,5.13648,1809.1,1809.0,1.10574]
[1746478469317,5.6983,1809.1,1809.0,1.10574]
[1746478470314,6.80398,1809.1,1809.0,1.10574]
[1746478470618,3.59618,1809.1,1809.0,1.10574]
[1746478470814,6.80398,1809.1,1809.0,1.10574]
[1746478472719,5.6983,1809.1,1809.0,1.10574]
[1746478472910,2.4905,1809.1,1809.0,1.10574]
[1746478473111,3.59618,1809.1,1809.0,1.10574]
[1746478473306,6.80398,1809.1,1809.0,1.10574]
[1746478474920,1.10574,1809.0,1808.9,2.80006]
[1746478475216,3.51444,1809.0,1808.9,2.80006]
[1746478475914,2.4087,1809.0,1808.9,2.80006]
[1746478476119,0.7893,1809.0,1808.9,2.80006]
[1746478477419,1.89504,1809.0,1808.9,2.80006]
[1746478477610,3.58724,1809.0,1808.9,1.10576]
[1746478478311,1.10581,1808.9,1808.8,2.68493]
[1746478478513,1.10587,1808.8,1808.7,4.74588]
[1746478478714,1.90377,1808.8,1808.7,6.32498]
[1746478478912,3.59597,1808.8,1808.7,6.32498]
[1746478479112,2.4901,1808.8,1808.7,6.32498]
[1746478479621,3.59597,1808.8,1808.7,6.32498]
[1746478480120,0.7979,1808.8,1808.7,6.32498]
[1746478482521,5.93372,1808.9,1808.8,1.10587]
[1746478482714,5.93372,1808.9,1808.8,2.68667]
[1746478482910,3.2078,1808.9,1808.8,2.68667]
[1746478483124,3.2078,1808.9,1808.8,7.76437]
[1746478483924,3.67741346,1809.1,1809.0,1.10574]
[1746478484222,3.67741346,1809.1,1809.0,4.83774]
[1746478485211,4.52793,1809.2,1809.0,1.10574]
[1746478485416,4.52793,1809.2,1809.1,1.10568]
[1746478486624,3.4223,1809.2,1809.1,1.10568]
[1746478488426,1.6864,1809.2,1809.1,1.10568]
[1746478488817,3.32,1809.2,1809.1,1.10568]
[1746478489629,4.42567,1809.2,1809.1,1.10568]
[1746478491929,1.10567,1809.2,1809.1,1.10568]
[1746478492231,4.31337,1809.3,1809.2,1.10562]
[1746478492419,5.88197,1809.3,1809.2,1.10562]
[1746478493114,4.7764,1809.3,1809.2,1.10562]
[1746478493524,3.2078,1809.3,1809.2,1.10562]
[1746478494325,5.34101346,1809.4,1809.3,1.10556]
[1746478496629,4.3966,1809.4,1809.3,1.10556]
[1746478496927,3.2911,1809.4,1809.3,1.10556]
[1746478498723,4.3966,1809.4,1809.3,1.10556]
[1746478498924,3.2911,1809.4,1809.3,1.10556]
[1746478500329,3.2911,1809.4,1809.2,1.6162]
[1746478500630,1.7283,1809.3,1809.2,2.72182]
[1746478501123,1.7283,1809.3,1809.2,6.45382]
[1746478502228,1.6636,1809.4,1809.3,1.10556]
[1746478502532,1.6636,1809.4,1809.3,2.73306]
[1746478503921,4.9418,1809.5,1809.3,2.73306]
[1746478503922,3.2078,1809.5,1809.4,1.1055]
[1746478504133,3.2078,1809.5,1809.4,6.465]
[1746478504830,3.2078,1809.5,1809.4,47.265]
[1746478505534,4.31324,1809.5,1809.4,47.265]
[1746478505731,4.31324,1809.5,1809.4,46.1595]
[1746478505933,6.02604,1809.5,1809.4,44.532]
[1746478506234,6.02604,1809.5,1809.4,40.8]
[1746478506736,6.02604,1809.5,1809.4,41.9055]
[1746478508431,6.02604,1809.5,1809.4,43.5958]
[1746478509727,6.02604,1809.5,1809.4,41.9055]
[1746478510829,6.02604,1809.5,1809.4,40.8]
[1746478511030,6.02604,1809.5,1809.4,41.9055]
[1746478512336,6.02604,1809.5,1809.4,40.8]
[1746478512541,6.02604,1809.5,1809.4,41.9055]
[1746478513338,6.02604,1809.5,1809.4,40.8]
[1746478513737,1.10568,1809.1,1809.0,5.3357]
[1746478514039,1.10568,1809.1,1809.0,6.44135]
[1746478514344,1.10568,1809.1,1809.0,50.97335]
[1746478514537,4.34647,1809.2,1809.1,1.10568]
[1746478514944,4.34647,1809.2,1809.1,2.80738]
[1746478520046,4.34647,1809.2,1809.1,43.60738]
[1746478520844,3.2408,1809.2,1809.1,43.60738]
[1746478521042,4.78295346,1809.4,1809.1,42.5017]
[1746478521243,4.78295346,1809.4,1809.3,1.10556]
[1746478521639,4.78295346,1809.4,1809.3,2.72876]
[1746478524746,1.10554,1809.4,1809.3,2.72876]
[1746478525748,1.10554,1809.4,1809.3,43.52876]
[1746478526249,2.80004,1809.4,1809.3,43.52876]
[1746478528544,1.10554,1809.4,1809.3,43.52876]
[1746478533047,2.81384,1809.4,1809.3,43.52876]
[1746478534953,6.49125346,1809.4,1809.3,43.52876]
[1746478537853,4.78295346,1809.4,1809.3,43.52876]
[1746478539156,3.67741346,1809.4,1809.3,43.52876]
[1746478542358,1.1055,1809.4,1809.3,43.52876]
[1746478542651,11.32089346,1809.5,1809.3,43.52876]
[1746478542956,11.32089346,1809.5,1809.4,2.8214]
[1746478543546,8.11309346,1809.5,1809.4,2.8214]
[1746478543750,11.32089346,1809.5,1809.4,2.8214]
[1746478548356,8.11309346,1809.5,1809.4,2.8214]
[1746478548563,11.32089346,1809.5,1809.4,2.8214]
[1746478549666,8.11309346,1809.5,1809.4,2.8214]
[1746478549853,11.32089346,1809.5,1809.4,2.8214]
[1746478551558,11.32089346,1809.5,1809.4,1.7159]
[1746478551968,11.32089346,1809.5,1809.4,2.8214]
[1746478552562,8.11309346,1809.5,1809.4,2.8214]
[1746478552768,11.32089346,1809.5,1809.4,2.8214]
[1746478553369,11.32089346,1809.5,1809.4,1.1055]
[1746478557368,4.48181346,1809.5,1809.4,1.1055]
[1746478557669,3.67741346,1809.5,1809.4,2.7019]
[1746478557868,3.67741346,1809.5,1809.4,3.2641]
[1746478558066,3.67741346,1809.5,1809.4,4.0791]
[1746478558266,3.67741346,1809.5,1809.4,7.8111]
[1746478560572,4.45851346,1809.7,1809.6,1.10538]
[1746478561375,4.45851346,1809.7,1809.6,2.74348]
[1746478561576,3.67741346,1809.7,1809.6,2.74348]
[1746478564572,1.6403,1809.8,1809.7,1.10532]
[1746478564778,1.6403,1809.8,1809.7,2.79962]
[1746478565082,1.6403,1809.8,1809.7,6.53162]
[1746478567183,1.6403,1809.8,1809.7,2.79962]
[1746478567792,2.74556,1809.8,1809.7,2.79962]
[1746478567991,1.6403,1809.8,1809.7,2.79962]
[1746478568490,2.74556,1809.8,1809.7,2.79962]
[1746478568787,1.10538,1809.6,1809.5,3.628]
[1746478568985,1.10544,1809.5,1809.4,3.732]
[1746478569185,3.55164,1809.5,1809.4,1.1055]
[1746478569695,1.1055,1809.4,1809.3,45.52752]
[1746478569991,2.7039,1809.4,1809.3,45.52756]
[1746478570190,3.5037,1809.4,1809.3,45.52756]
[1746478570590,2.3982,1809.4,1809.3,47.21506]
[1746478571390,4.0556,1809.5,1809.4,1.1055]
[1746478571886,0.8478,1809.5,1809.4,1.1055]
[1746478572082,3.67741346,1809.7,1809.6,1.10538]
[1746478572395,4.47701346,1809.7,1809.6,1.10538]
[1746478572592,6.06171346,1809.7,1809.6,1.10538]
[1746478573085,7.16703346,1809.7,1809.6,1.10538]
[1746478573389,2.3843,1809.7,1809.6,1.10538]
[1746478574499,3.48962,1809.7,1809.6,1.10538]
[1746478574794,2.3843,1809.7,1809.6,1.10538]
[1746478580496,2.3843,1809.7,1809.6,2.71328]
[1746478580898,0.8211,1809.8,1809.7,1.10532]
[1746478581096,0.8211,1809.8,1809.7,2.80142]
[1746478584499,2.5009,1809.8,1809.7,2.80142]
[1746478585099,2.5009,1809.8,1809.7,6.53342]
[1746478586002,0.8211,1809.8,1809.7,6.53342]
[1746478586200,0.8211,1809.8,1809.7,2.80142]
[1746478586805,0.8211,1809.8,1809.5,3.732]
[1746478587103,1.10538,1809.6,1809.5,3.732]
[1746478587304,1.10538,1809.6,1809.5,1.10544]
[1746478587602,3.46578,1809.6,1809.5,1.10544]
[1746478587902,2.3604,1809.6,1809.5,1.10544]
[1746478594711,3.46578,1809.6,1809.5,1.10544]
[1746478596410,1.10544,1809.5,1809.4,2.68565]
[1746478596613,3.56894,1809.5,1809.4,2.68565]
[1746478596812,3.56894,1809.5,1809.4,1.10545]
[1746478597315,2.4635,1809.5,1809.4,1.10545]
[1746478600620,2.4635,1809.5,1809.4,2.66905]
[1746478602921,3.56894,1809.5,1809.4,2.66905]
[1746478603518,2.4635,1809.5,1809.4,2.66905]
[1746478612326,0.8166,1809.5,1809.4,2.66905]
[1746478613335,0.8166,1809.5,1809.4,6.40105]
[1746478628148,2.4118,1809.6,1809.5,1.10544]
[1746478628348,2.4118,1809.6,1809.5,2.73534]
[1746478628545,3.67741346,1809.7,1809.6,1.10538]
[1746478628749,3.67741346,1809.7,1809.6,5.94308]
[1746478630353,3.67741346,1809.7,1809.6,9.55308]
[1746478631450,3.67741346,1809.9,1809.8,1.10526]
[1746478631850,3.67741346,1809.9,1809.8,4.31306]
[1746478632046,3.67741346,1809.9,1809.8,6.59666]
[1746478632349,3.67741346,1809.9,1809.8,10.7612811]
[1746478632946,2.46744346,1809.9,1809.8,10.7612811]
[1746478635356,0.8527,1810.2,1810.1,1.10507]
[1746478636153,0.8527,1810.2,1810.1,2.74207]
[1746478636350,1.7001,1810.3,1810.2,1.10501]
[1746478636549,6.36759206,1810.4,1810.3,1.10495]
[1746478637249,7.96459206,1810.4,1810.3,45.63695]
[1746478638554,6.36759206,1810.4,1810.3,49.24695]
[1746478638759,7.96459206,1810.4,1810.3,49.24695]
[1746478638956,2.4545,1810.4,1810.3,49.24695]
[1746478640460,0.8575,1810.4,1810.3,49.24695]
[1746478640957,0.8647,1810.5,1810.4,1.10489]
[1746478641157,0.8647,1810.5,1810.4,6.45309]
[1746478641750,0.8647,1810.5,1810.4,47.25309]
[1746478643259,0.8393,1810.6,1810.5,1.10483]
[1746478643462,3.403,1810.6,1810.5,2.78013]
[1746478644047,3.403,1810.6,1810.5,47.31213]
[1746478644458,1.6802,1810.6,1810.5,47.31213]
[1746478648862,7.78497,1810.6,1810.5,44.532]
[1746478649260,7.78497,1810.6,1810.5,40.8]
[1746478649261,9.39247,1810.6,1810.5,40.8]
[1746478649457,9.39247,1810.6,1810.5,41.90483]
[1746478649661,4.39247,1810.6,1810.5,41.90483]
[1746478649957,4.39247,1810.6,1810.5,40.8]
[1746478650262,4.39247,1810.6,1810.5,41.90483]
[1746478650648,4.39247,1810.6,1810.5,40.8]
[1746478650853,4.39247,1810.6,1810.5,41.90483]
[1746478651964,4.39247,1810.6,1810.5,40.8]
[1746478652358,9.39247,1810.6,1810.5,40.8]
[1746478652553,1.10489,1810.4,1810.3,1.1049]
[1746478652754,4.31269,1810.4,1810.3,1.1049]
[1746478652964,4.31269,1810.4,1810.3,41.9049]
[1746478655265,4.31269,1810.4,1810.3,40.8]
[1746478655565,1.10501,1810.2,1810.1,4.70802]
[1746478656264,2.75031,1810.2,1810.1,45.50802]
[1746478666069,2.75031,1810.2,1810.1,44.403]
[1746478666273,5.95811,1810.2,1810.1,44.403]
[1746478666664,5.95811,1810.2,1810.1,45.50807]
[1746478669073,2.75031,1810.2,1810.1,45.50807]
[1746478670377,1.6453,1810.2,1810.1,45.50807]
[1746478671678,2.75031,1810.2,1810.1,45.50807]
[1746478671875,1.6453,1810.2,1810.1,45.50807]
[1746478672477,2.75031,1810.2,1810.1,45.50807]
[1746478679184,2.75031,1810.2,1810.1,47.14787]
[1746478679485,1.6453,1810.2,1810.1,47.14787]
[1746478679685,2.75031,1810.2,1810.1,47.14787]
[1746478681884,2.75031,1810.2,1810.1,44.403]
[1746478682186,5.95811,1810.2,1810.1,44.403]
[1746478682680,5.95811,1810.2,1810.1,3.603]
[1746478682886,1.10513,1810.0,1809.9,1.10514]
[1746478683081,4.31293,1810.0,1809.9,1.10514]
[1746478683294,7.71333,1810.0,1809.9,41.90514]
[1746478684086,7.71333,1810.0,1809.9,40.8]
[1746478684297,11.44533,1810.0,1809.9,40.8]
[1746478684481,11.44533,1810.0,1809.9,41.90519]
[1746478685985,7.8036,1810.0,1809.9,41.90519]
[1746478686192,3.2078,1810.0,1809.9,45.63719]
[1746478686488,3.2078,1810.0,1809.9,46.19879]
[1746478686689,3.2078,1810.0,1809.9,47.91209]
[1746478687887,4.31293,1810.0,1809.9,3.732]
[1746478688192,1.10538,1809.6,1809.5,0.0206]
[1746478688393,4.31318,1809.6,1809.5,42.5495]
[1746478688984,3.2078,1809.6,1809.5,43.65494]
[1746478689190,3.2078,1809.6,1809.5,47.38694]
[1746478689882,1.10533,1809.7,1809.6,1.10538]
[1746478690079,1.10533,1809.7,1809.6,2.83428]
[1746478690798,4.31313,1809.7,1809.6,1.7289]
[1746478691295,4.31313,1809.7,1809.6,2.83428]
[1746478691888,4.31313,1809.7,1809.6,1.7289]
[1746478692090,4.31313,1809.7,1809.6,2.83428]
[1746478692790,4.31313,1809.7,1809.6,1.7289]
[1746478693090,1.10538,1809.6,1809.5,40.8206]
[1746478693290,4.34398,1809.6,1809.5,42.4425]
[1746478693792,4.34398,1809.6,1809.5,43.54794]
[1746478694087,4.34398,1809.6,1809.5,42.4219]
[1746478694292,4.34398,1809.6,1809.5,43.52734]
[1746478695380,3.2386,1809.6,1809.5,43.52734]
[1746478696289,4.34398,1809.6,1809.5,43.52734]
[1746478702286,7.55178,1809.6,1809.5,43.52734]
[1746478705897,4.34398,1809.6,1809.5,43.52734]
[1746478706091,2.78018,1809.6,1809.5,43.52734]
[1746478707694,4.36268,1809.6,1809.5,43.52734]
[1746478710199,7.57048,1809.6,1809.5,40.8]
[1746478710502,7.57048,1809.6,1809.5,41.90544]
[1746478710800,5.12678,1809.6,1809.5,41.90544]
[1746478711199,5.12678,1809.6,1809.5,43.60894]
[1746478711396,0.8136,1809.6,1809.5,43.60894]